bitfinex/quotes_SOLUSD_20250920
["timestamp","ask_amount","ask_price","bid_price","bid_amount"]
[1758406037051,4.81564069,240.06,240.04,36.69545174]
[1758406038568,4.81564069,240.06,240.04,31.88]
[1758406040070,4.16564069,240.06,240.04,31.88]
[1758406040465,4.16564069,240.06,240.04,36.04564069]
[1758406042173,4.16564069,240.06,240.04,31.88]
[1758406042757,6.97077172,240.06,240.04,31.88]
[1758406042952,6.97092982,240.05,240.04,31.88]
[1758406043273,4.16579879,240.05,240.03,4.16564069]
[1758406043455,4.16579879,240.05,240.04,31.88]
[1758406043652,6.06104007,240.05,240.04,31.88]
[1758406043967,14.88151918,240.05,240.04,31.88]
[1758406044974,25.29601615,240.05,240.04,31.88]
[1758406046984,25.29601615,240.05,240.03,31.88]
[1758406047179,5.32468032,240.04,240.03,31.88]
[1758406047659,17.85051485,240.04,240.03,31.88]
[1758406047979,22.01648718,240.04,240.02,0.2]
[1758406048172,5.8999216,240.03,240.02,0.2]
[1758406048478,5.8999216,240.03,239.99,1e-08]
[1758406048479,31.2,240.0,239.99,1e-08]
[1758406048670,5.8999216,240.0,239.99,1e-08]
[1758406048863,6.5699216,240.0,239.99,1e-08]
[1758406049170,18.42837162,240.0,239.99,1e-08]
[1758406049377,19.09837162,240.0,239.99,1e-08]
[1758406049956,17.24882233,240.0,239.99,1e-08]
[1758406050279,23.26066302,240.0,239.99,1e-08]
[1758406051261,21.41548899,240.0,239.99,1e-08]
[1758406059471,18.61035796,240.0,239.99,1e-08]
[1758406064992,16.69511668,240.0,239.99,1e-08]
[1758406065296,16.69511668,240.0,239.99,0.71000001]
[1758406065494,16.69511668,240.0,239.99,1e-08]
[1758406065999,17.36511668,240.0,239.99,1e-08]
[1758406067677,18.61035796,240.0,239.99,1e-08]
[1758406068497,17.94035796,240.0,239.99,1e-08]
[1758406068900,18.61035796,240.0,239.99,1e-08]
[1758406075797,17.94035796,240.0,239.99,1e-08]
[1758406080511,16.69511668,240.0,239.99,1e-08]
[1758406081309,19.49179706,240.0,239.99,1e-08]
[1758406082214,6.96334704,240.0,239.99,1e-08]
[1758406083314,7.68334704,240.0,239.99,1e-08]
[1758406086020,6.96334704,240.0,239.99,1e-08]
[1758406087498,8.81000298,240.0,239.99,1e-08]
[1758406088895,9.52000298,240.0,239.99,1e-08]
[1758406090008,8.81000298,240.0,239.99,1e-08]
[1758406090200,8.81721079,240.0,239.99,1e-08]
[1758406093808,4.65054413,240.0,239.99,0.72000001]
[1758406094395,2.80388819,240.02,239.99,0.72000001]
[1758406094613,4.65481252,240.01,239.99,0.72000001]
[1758406094805,2.80388819,240.0,239.99,0.72000001]
[1758406095011,2.80388819,240.01,239.99,0.72000001]
[1758406096101,2.80388819,240.01,240.0,0.72]
[1758406096300,4.65457764,240.01,240.0,0.72]
[1758406096701,1.85068945,240.01,240.0,0.72]
[1758406097114,4.65457764,240.01,240.0,0.72]
[1758406097313,1.85068945,240.01,240.0,0.72]
[1758406097521,4.65457764,240.01,240.0,0.72]
[1758406097721,2.80388819,240.02,240.0,2.66721323]
[1758406098014,2.80388819,240.04,240.01,0.72]
[1758406098215,4.65454405,240.03,240.01,0.72]
[1758406098519,2.80388819,240.04,240.01,4.88648899]
[1758406098826,2.80388819,240.05,240.02,0.72]
[1758406099125,4.65434963,240.04,240.02,0.72]
[1758406099297,2.80388819,240.05,240.02,0.72]
[1758406099497,2.80388819,240.05,240.02,2.66721323]
[1758406099719,2.80388819,240.07,240.03,0.72]
[1758406099919,4.65371441,240.06,240.03,0.72]
[1758406100116,4.65371441,240.05,240.03,0.72]
[1758406100319,2.80388819,240.07,240.04,0.72]
[1758406100505,4.65313377,240.06,240.04,0.72]
[1758406100706,1.84924558,240.05,240.04,0.72]
[1758406101313,6.96934478,240.07,240.04,0.72]
[1758406101518,6.96934478,240.07,240.03,0.72]
[1758406101519,1.84869735,240.06,240.03,0.72]
[1758406104329,4.65258554,240.06,240.03,0.72]
[1758406104520,2.80388819,240.06,240.03,0.72]
[1758406104827,4.87545659,240.07,240.03,0.72]
[1758406105025,1.8477413,240.06,240.03,0.72]
[1758406105408,4.65162949,240.06,240.03,0.72]
[1758406105608,2.80388819,240.06,240.03,0.72]
[1758406105824,4.87545659,240.07,240.03,0.72]
[1758406106016,1.84749066,240.06,240.03,0.72]
[1758406106531,4.65137885,240.06,240.03,0.72]
[1758406106731,2.80388819,240.06,240.03,0.72]
[1758406107202,0.71,240.06,240.03,0.72]
[1758406109725,4.87562888,240.06,240.01,31.86]
[1758406109922,0.71,240.05,240.01,31.86]
[1758406110225,0.71,240.04,240.01,31.86]
[1758406110425,0.71,240.04,240.01,32.51]
[1758406113416,0.71,240.05,240.01,32.51]
[1758406115126,0.71,240.05,240.02,31.86]
[1758406115725,0.71,240.04,239.99,1e-08]
[1758406115910,2.65721323,240.04,239.99,31.86000001]
[1758406116112,0.71,240.03,239.99,31.86000001]
[1758406116324,0.71,240.02,239.99,31.86000001]
[1758406116514,5.46110142,240.04,239.99,32.51000001]
[1758406116716,0.71,240.03,239.99,32.51000001]
[1758406118738,4.16631947,240.02,239.99,32.51000001]
[1758406121333,4.16631947,240.02,240.0,0.65]
[1758406124027,2.79969983,240.04,239.99,33.80721324]
[1758406124028,6.96578626,240.04,239.99,33.80721324]
[1758406124222,0.71,240.03,239.99,33.80721324]
[1758406124430,6.96593976,240.05,240.0,0.65]
[1758406124622,7.67593976,240.05,239.99,37.97399187]
[1758406124830,7.67593976,240.05,240.0,0.65]
[1758406125128,7.67593976,240.05,240.01,0.65]
[1758406126313,6.96593976,240.05,240.01,0.65]
[1758406126509,7.67593976,240.05,240.01,0.65]
[1758406127232,2.80013121,240.05,240.01,2.59721323]
[1758406127535,4.87544582,240.08,240.03,1.94721323]
[1758406127716,1.84653755,240.07,240.04,32.51]
[1758406128123,4.64715138,240.07,240.04,32.51]
[1758406128318,2.80061383,240.07,240.04,32.51]
[1758406128634,4.87544582,240.08,240.04,32.51]
[1758406128812,1.84661319,240.07,240.04,32.51]
[1758406129012,7.67605965,240.08,240.04,32.51]
[1758406129237,2.80061383,240.07,240.04,32.51]
[1758406129430,4.87544582,240.08,240.04,32.51]
[1758406131136,2.80061383,240.09,240.05,2.59721323]
[1758406131450,4.16511149,240.09,240.06,0.65]
[1758406132028,4.87511149,240.09,240.06,0.65]
[1758406134539,4.87511149,240.09,240.04,31.86]
[1758406134842,0.71,240.08,240.05,0.65]
[1758406137433,0.71,240.08,240.04,31.86]
[1758406137622,0.71,240.08,240.04,32.52]
[1758406138047,0.71,240.08,240.04,31.86]
[1758406138247,0.71,240.08,240.04,32.52]
[1758406138748,0.71,240.08,240.05,0.66]
[1758406141148,4.875303,240.08,240.05,0.66]
[1758406142024,4.875303,240.08,240.04,31.86]
[1758406142226,4.875303,240.08,240.04,32.52]
[1758406143829,4.875303,240.08,240.03,1.94721323]
[1758406143830,0.66,240.07,240.02,13.20269739]
[1758406144029,0.66,240.06,240.03,31.84]
[1758406144438,0.66,240.06,240.03,32.52]
[1758406144935,4.8257645,240.06,240.03,32.52]
[1758406145831,4.8257645,240.06,240.01,17.76069876]
[1758406145832,0.66,240.05,240.01,4.16510475]
[1758406146030,0.66,240.04,240.02,31.84]
[1758406147336,0.66,240.05,240.02,31.84]
[1758406148751,14.57908109,240.07,240.02,31.84]
[1758406148947,0.66,240.04,240.02,31.84]
[1758406149247,0.66,240.05,240.02,31.84]
[1758406151254,4.16597233,240.04,240.02,32.52]
[1758406151953,0.66,240.03,239.99,1e-08]
[1758406152151,0.66,240.03,240.0,31.84]
[1758406152738,4.16597233,240.04,240.0,32.52]
[1758406152934,4.82597233,240.04,240.0,32.52]
[1758406155853,4.82597233,240.04,239.99,1e-08]
[1758406155854,32.44512648,240.01,239.99,1e-08]
[1758406156238,0.66,240.0,239.99,1e-08]
[1758406156837,4.16666666,240.0,239.99,1e-08]
[1758406157255,4.82666666,240.0,239.99,1e-08]
[1758406158554,7.62412201,240.0,239.99,1e-08]
[1758406159443,20.15257203,240.0,239.99,1e-08]
[1758406162977,4.16643102,240.02,239.99,0.68000001]
[1758406163455,4.16643102,240.02,240.0,0.68]
[1758406164045,5.4115575,240.02,240.0,0.68]
[1758406164241,6.0715575,240.02,239.99,1e-08]
[1758406165064,8.86748762,240.02,239.99,1e-08]
[1758406166567,8.20748762,240.02,239.99,0.69000001]
[1758406167571,8.87748762,240.02,239.99,1e-08]
[1758406167953,8.87748762,240.02,239.99,0.69000001]
[1758406171167,6.0815575,240.02,239.99,0.69000001]
[1758406172469,4.16666666,240.0,239.99,1e-08]
[1758406172861,4.83666666,240.0,239.99,1e-08]
[1758406175548,4.16649306,240.01,239.99,1e-08]
[1758406175749,4.83649306,240.01,239.99,1e-08]
[1758406176872,5.41179314,240.0,239.99,1e-08]
[1758406177253,6.08179314,240.0,239.99,1e-08]
[1758406178861,8.8758344,240.0,239.99,1e-08]
[1758406179159,16.49771043,240.0,239.99,1e-08]
[1758406179368,19.29175169,240.0,239.99,1e-08]
[1758406184178,21.13302452,240.0,239.99,1e-08]
[1758406190077,20.46302452,240.0,239.99,1e-08]
[1758406190258,21.13302452,240.0,239.99,1e-08]
[1758406200581,21.1360158,240.0,239.99,1e-08]
[1758406205792,21.8386463,240.0,239.99,1e-08]
[1758406219313,25.34350653,240.0,239.99,1e-08]
[1758406221401,31.2,239.97,239.96,0.68]
[1758406221608,35.83830537,239.97,239.96,0.68]
[1758406227115,40.00549293,239.97,239.96,0.68]
[1758406228813,40.00549293,239.97,239.94,0.72]
[1758406229008,4.1675349,239.95,239.92,0.2]
[1758406229296,4.63830537,239.94,239.92,0.2]
[1758406229497,2.79404126,239.93,239.92,0.2]
[1758406230718,2.79404126,239.93,239.92,0.92]
[1758406233117,31.2,239.97,239.92,0.92]
[1758406233322,4.65520635,239.96,239.92,0.92]
[1758406233519,4.65520635,239.95,239.93,0.72]
[1758406233816,31.2,239.97,239.93,0.72]
[1758406233817,2.80596826,239.94,239.93,0.72]
[1758406244323,2.80596826,239.96,239.93,0.72]
[1758406244526,2.80596826,239.95,239.93,0.72]
[1758406244723,2.80596826,239.94,239.93,0.72]
[1758406244920,2.80596826,239.96,239.93,0.72]
[1758406245123,2.80596826,239.95,239.93,0.72]
[1758406245325,2.80596826,239.94,239.93,0.72]
[1758406245632,2.80596826,239.95,239.93,0.72]
[1758406245926,2.80596826,239.94,239.93,0.72]
[1758406246126,2.80596826,239.95,239.93,0.72]
[1758406246427,2.80596826,239.94,239.93,0.72]
[1758406246725,2.80596826,239.95,239.92,4.36805601]
[1758406246923,2.80596826,239.94,239.92,5.08805601]
[1758406247135,2.80596826,239.93,239.92,5.08805601]
[1758406247431,2.80596826,239.95,239.92,5.08805601]
[1758406247602,2.80596826,239.94,239.92,5.08805601]
[1758406247802,2.80596826,239.93,239.92,5.08805601]
[1758406248019,2.80596826,239.95,239.92,5.08805601]
[1758406248223,0.69,239.96,239.92,5.08805601]
[1758406248224,2.80596826,239.94,239.92,5.08805601]
[1758406248409,2.80596826,239.95,239.92,5.08805601]
[1758406248610,2.80596826,239.94,239.92,5.08805601]
[1758406248816,2.80596826,239.95,239.92,5.08805601]
[1758406249033,2.80596826,239.94,239.92,5.08805601]
[1758406249221,2.80596826,239.93,239.92,5.08805601]
[1758406249422,3.49596826,239.96,239.92,5.08805601]
[1758406249621,2.80596826,239.95,239.92,5.08805601]
[1758406249931,2.80596826,239.95,239.93,48.10335099]
[1758406250104,2.80596826,240.0,239.95,13.59559401]
[1758406250312,2.80596826,239.99,239.96,2.66775698]
[1758406250514,2.80596826,239.98,239.97,0.72]
[1758406250821,3.49596826,240.01,239.98,0.72]
[1758406251126,31.2,240.02,239.98,0.72]
[1758406251127,4.65464555,240.0,239.98,32.56]
[1758406251319,2.80596826,239.99,239.98,33.78775698]
[1758406251628,7.66198649,240.04,239.98,33.78775698]
[1758406251926,4.65440022,240.03,239.99,0.72]
[1758406252231,2.80596826,240.02,239.99,0.72]
[1758406252429,2.80596826,240.01,239.99,0.72]
[1758406252632,2.80596826,240.02,239.99,0.72]
[1758406252811,2.80596826,240.01,239.99,0.72]
[1758406253009,2.80596826,240.02,239.99,0.72]
[1758406254233,3.49596826,240.03,239.99,0.72]
[1758406254438,2.80596826,240.03,239.99,0.72]
[1758406254621,0.69,240.02,239.99,0.72]
[1758406258530,3.46596826,240.04,239.99,0.68]
[1758406258729,0.66,240.04,239.99,0.68]
[1758406259922,4.82603282,240.04,239.99,0.68]
[1758406261348,4.82603282,240.04,239.99,31.84]
[1758406261637,0.66,240.03,239.99,31.84]
[1758406261847,0.66,240.02,239.99,31.84]
[1758406262031,0.66,240.01,239.99,31.84]
[1758406266026,3.50596826,240.03,239.99,31.84]
[1758406266240,0.7,240.02,239.99,31.84]
[1758406266435,0.7,240.02,239.99,32.52]
[1758406266746,0.7,240.02,239.99,31.84]
[1758406267931,4.86636293,240.02,239.99,31.84]
[1758406269358,4.86636293,240.02,239.99,32.52]
[1758406270430,4.86636293,240.02,240.0,31.82]
[1758406271254,4.16636293,240.02,240.0,31.82]
[1758406271424,4.86604949,240.04,240.0,32.5]
[1758406271752,0.7,240.03,240.0,31.82]
[1758406272945,4.16631947,240.02,240.0,31.82]
[1758406274762,4.86597233,240.04,240.0,32.5]
[1758406284564,0.7,240.03,240.0,31.82]
[1758406284767,0.7,240.02,240.0,31.82]
[1758406284947,1.9457348,240.01,239.95,4.16597233]
[1758406285148,0.7,240.0,239.96,31.82]
[1758406285353,1.9457348,239.99,239.97,31.82]
[1758406285552,1.2457348,239.99,239.97,31.82]
[1758406285754,0.7,239.98,239.97,31.82]
[1758406286061,4.86701391,239.98,239.97,31.82]
[1758406290472,18.06051696,239.98,239.94,31.82]
[1758406290650,4.72170306,239.97,239.94,31.82]
[1758406291673,4.72170306,239.97,239.94,32.49]
[1758406292374,4.83736122,239.96,239.92,32.69]
[1758406293555,4.16736122,239.96,239.93,0.67]
[1758406293967,4.16736122,239.96,239.94,0.67]
[1758406297781,4.16736122,239.96,239.92,32.02]
[1758406297979,4.16736122,239.96,239.93,0.67]
[1758406298369,4.83736122,239.96,239.93,0.67]
[1758406299954,4.83736122,239.96,239.92,32.69]
[1758406300876,4.83736122,239.96,239.92,32.02]
[1758406301068,4.16736122,239.96,239.93,0.67]
[1758406301774,4.83736122,239.96,239.93,0.67]
[1758406305555,4.16736122,239.96,239.92,32.02]
[1758406305760,4.83736122,239.96,239.92,32.69]
[1758406306076,1.9157348,239.95,239.92,32.02]
[1758406306277,1.9157348,239.95,239.92,32.69]
[1758406306982,4.16736122,239.96,239.93,0.67]
[1758406307583,4.83736122,239.96,239.93,0.67]
[1758406307966,4.16736122,239.96,239.92,32.02]
[1758406308275,8.21889172,239.97,239.94,0.67]
[1758406308468,4.16698613,239.99,239.95,0.67]
[1758406308783,4.83698613,239.99,239.95,31.82]
[1758406308978,0.67,239.98,239.95,31.82]
[1758406309180,0.67,239.97,239.95,31.82]
[1758406310086,4.83732185,239.97,239.95,31.82]
[1758406313797,4.16732185,239.97,239.95,31.82]
[1758406316192,4.16732185,239.97,239.95,32.49]
[1758406317494,4.16732185,239.97,239.95,31.82]
[1758406318398,4.16732185,239.97,239.95,32.49]
[1758406319198,6.96514763,239.98,239.95,32.49]
[1758406319398,32.4457348,239.99,239.96,0.67]
[1758406319599,2.79940528,239.98,239.96,0.67]
[1758406320490,2.79940528,239.98,239.95,31.82]
[1758406320491,2.79940528,239.98,239.95,32.49]
[1758406321101,0.72,239.97,239.95,31.82]
[1758406321589,6.96654376,239.98,239.95,31.82]
[1758406321789,7.68654376,239.98,239.95,31.82]
[1758406321987,2.79940528,239.98,239.96,0.67]
[1758406322188,2.79940528,240.01,239.96,1.9157348]
[1758406322392,2.79940528,240.03,239.97,0.67]
[1758406322598,2.79940528,240.02,239.98,31.82]
[1758406322897,2.79940528,240.03,239.99,0.67]
[1758406323087,2.79940528,240.02,239.99,0.67]
[1758406324495,3.50940528,240.02,239.99,0.67]
[1758406326096,3.50940528,240.02,239.98,32.54]
[1758406326298,2.79940528,240.01,239.99,0.72]
[1758406326996,2.79940528,240.01,239.98,31.82]
[1758406327205,2.79940528,240.02,239.99,0.72]
[1758406327396,2.79940528,240.02,239.98,35.98700762]
[1758406327397,2.79940528,240.03,240.0,0.72]
[1758406328079,2.79940528,240.03,240.01,31.82]
[1758406328393,2.79940528,240.02,240.01,31.82]
[1758406328703,2.79940528,240.03,240.01,31.82]
[1758406328908,2.79940528,240.02,240.01,31.82]
[1758406329090,2.79940528,240.03,240.01,31.82]
[1758406329402,2.79940528,240.02,240.01,31.82]
[1758406329602,2.79940528,240.03,240.01,31.82]
[1758406329902,2.79940528,240.02,240.01,31.82]
[1758406330104,2.79940528,240.03,240.01,31.82]
[1758406330296,2.79940528,240.02,240.01,31.82]
[1758406330506,2.79940528,240.03,240.01,31.82]
[1758406331509,2.79940528,240.03,240.01,32.54]
[1758406332312,2.79940528,240.03,240.01,31.82]
[1758406332605,3.50940528,240.03,240.01,31.82]
[1758406334411,0.71,240.03,240.01,31.82]
[1758406335505,4.87616627,240.03,240.01,31.82]
[1758406336707,0.71,240.03,240.01,31.82]
[1758406342509,6.96539087,240.04,240.01,32.54]
[1758406343006,7.67539087,240.04,240.01,31.82]
[1758406343197,2.79940528,240.04,240.01,32.54]
[1758406343590,3.50940528,240.04,240.01,32.54]
[1758406343803,2.79940528,240.04,240.02,0.72]
[1758406345310,2.79940528,240.04,240.03,0.72]
[1758406345711,2.79940528,240.05,240.03,0.72]
[1758406346011,7.67505211,240.06,240.03,0.72]
[1758406346212,2.79940528,240.05,240.03,0.72]
[1758406346592,4.87564683,240.06,240.03,0.72]
[1758406346794,7.67505211,240.06,240.01,36.64648418]
[1758406346994,2.79940528,240.05,240.02,0.66]
[1758406347201,4.87564683,240.06,240.03,0.66]
[1758406350711,4.87564683,240.06,240.01,35.98648418]
[1758406350920,4.87564683,240.06,240.02,0.66]
[1758406351417,2.79940528,240.07,240.03,0.66]
[1758406351714,2.79940528,240.08,240.03,0.66]
[1758406351916,2.79940528,240.08,240.03,2.60651867]
[1758406352097,2.79940528,240.08,240.04,0.66]
[1758406352297,2.79940528,240.08,240.05,32.46]
[1758406352916,34.70940528,240.09,240.05,32.46]
[1758406353110,2.79940528,240.08,240.05,32.46]
[1758406353418,3.50940528,240.08,240.05,32.46]
[1758406356627,0.71,240.08,240.05,32.46]
[1758406366107,6.96456036,240.1,240.05,32.46]
[1758406366303,3.50960828,240.09,240.05,32.46]
[1758406366504,0.71,240.09,240.05,32.46]
[1758406368027,4.87511733,240.09,240.05,32.46]
[1758406373330,4.87511733,240.09,240.05,31.8]
[1758406373517,4.87511733,240.09,240.06,0.66]
[1758406376832,4.87511733,240.09,240.05,32.47]
[1758406379143,4.87511733,240.09,240.06,0.67]
[1758406381520,7.67472561,240.09,240.05,31.8]
[1758406381721,2.79960828,240.08,240.05,32.47]
[1758406381930,4.16511733,240.09,240.05,32.47]
[1758406382131,0.68,240.08,240.05,32.47]
[1758406383435,4.16511733,240.09,240.05,32.47]
[1758406383636,4.83511733,240.09,240.05,32.47]
[1758406384739,2.79960828,240.1,240.06,0.71]
[1758406384933,6.9644803,240.11,240.06,0.71]
[1758406385247,7.6344803,240.11,240.06,0.71]
[1758406385445,2.79960828,240.1,240.07,0.71]
[1758406385646,2.79960828,240.1,240.08,31.78]
[1758406386548,2.79960828,240.1,240.08,32.49]
[1758406386844,2.79960828,240.11,240.09,0.71]
[1758406387023,2.79960828,240.12,240.09,0.71]
[1758406387229,2.79960828,240.11,240.09,0.71]
[1758406387547,2.79960828,240.12,240.09,0.71]
[1758406388145,4.16445101,240.13,240.09,0.71]
[1758406388345,1.91482506,240.11,240.1,31.78]
[1758406389549,6.07958287,240.11,240.1,31.78]
[1758406392253,4.83475781,240.11,240.1,31.78]
[1758406392629,7.63436609,240.11,240.1,31.78]
[1758406392828,4.83475781,240.11,240.1,31.78]
[1758406393333,7.63436609,240.11,240.1,31.78]
[1758406396734,6.96436609,240.11,240.1,31.78]
[1758406408858,2.79960828,240.11,240.1,32.48]
[1758406409064,2.79960828,240.12,240.1,32.48]
[1758406409373,2.79960828,240.11,240.1,31.78]
[1758406409560,2.79960828,240.12,240.1,31.78]
[1758406409762,2.79960828,240.11,240.1,32.48]
[1758406409952,2.79960828,240.12,240.1,32.48]
[1758406410257,2.79960828,240.11,240.1,32.48]
[1758406410444,2.79960828,240.12,240.1,32.48]
[1758406410646,2.79960828,240.11,240.1,32.48]
[1758406410965,2.79960828,240.12,240.1,32.48]
[1758406411146,2.79960828,240.11,240.1,32.48]
[1758406411342,2.79960828,240.12,240.1,32.48]
[1758406411542,2.79960828,240.11,240.1,32.48]
[1758406411756,2.79960828,240.12,240.1,32.48]
[1758406411957,2.79960828,240.11,240.1,32.48]
[1758406412143,2.79960828,240.12,240.1,32.48]
[1758406412342,2.79960828,240.11,240.1,32.48]
[1758406412555,2.79960828,240.12,240.1,32.48]
[1758406412755,2.79960828,240.11,240.1,32.48]
[1758406413068,2.79960828,240.12,240.1,32.48]
[1758406413460,2.79960828,240.11,240.1,32.48]
[1758406413761,2.79960828,240.12,240.1,32.48]
[1758406413960,2.79960828,240.11,240.1,32.48]
[1758406414169,2.79960828,240.12,240.1,32.48]
[1758406416765,4.16455143,240.13,240.11,0.7]
[1758406416766,6.96415971,240.13,240.11,0.7]
[1758406416968,2.79960828,240.12,240.11,0.7]
[1758406417345,4.16455143,240.13,240.1,31.78]
[1758406417545,6.96415971,240.13,240.1,32.48]
[1758406425473,2.79960828,240.13,240.1,32.48]
[1758406427350,2.79960828,240.13,240.11,0.7]
[1758406427877,2.79960828,240.13,240.1,31.78]
[1758406428056,2.79960828,240.13,240.1,32.48]
[1758406432277,2.79960828,240.12,240.1,32.48]
[1758406432479,2.79960828,240.13,240.1,32.48]
[1758406432651,2.79960828,240.12,240.1,32.48]
[1758406432856,2.79960828,240.13,240.1,32.48]
[1758406433068,2.79960828,240.12,240.1,32.48]
[1758406433273,2.79960828,240.13,240.1,32.48]
[1758406434579,2.79960828,240.13,240.1,35.94484069]
[1758406434763,2.79960828,240.15,240.11,0.7]
[1758406434964,2.79960828,240.14,240.11,0.7]
[1758406435158,2.79960828,240.16,240.11,0.7]
[1758406435366,2.79960828,240.15,240.11,0.7]
[1758406435574,2.79960828,240.14,240.11,0.7]
[1758406435781,2.79960828,240.16,240.11,4.8646729]
[1758406435981,2.79960828,240.15,240.12,0.7]
[1758406436177,2.79960828,240.15,240.11,4.1646729]
[1758406436178,2.79960828,240.16,240.13,32.41]
[1758406436370,2.79960828,240.17,240.14,0.65]
[1758406436767,2.79960828,240.17,240.15,0.65]
[1758406436961,2.79960828,240.17,240.16,31.76]
[1758406437175,4.16355275,240.18,240.16,31.76]
[1758406437176,2.79960828,240.18,240.16,31.76]
[1758406437380,0.81,240.19,240.16,32.41]
[1758406437762,0.81,240.19,240.16,44.28041954]
[1758406439792,4.97338443,240.19,240.16,44.28041954]
[1758406440371,4.97338443,240.19,240.16,44.93041954]
[1758406440678,4.97338443,240.19,240.16,44.28041954]
[1758406442394,4.26338443,240.19,240.16,44.28041954]
[1758406442565,4.26338443,240.19,240.16,44.93041954]
[1758406443685,7.06299271,240.19,240.16,44.93041954]
[1758406444274,0.1,240.19,240.17,1.96482506]
[1758406444468,0.1,240.19,240.18,32.48]
[1758406445579,0.1,240.19,240.18,34.1487178]
[1758406446009,0.1,240.19,240.18,47.74431181]
[1758406446373,0.1,240.19,240.18,51.90785581]
[1758406449790,0.1,240.19,240.18,53.85055325]
[1758406453594,0.1,240.19,240.18,22.09055325]
[1758406453902,0.1,240.19,240.18,53.83055325]
[1758406464708,0.1,240.19,240.18,51.88785581]
[1758406464889,0.1,240.19,240.18,53.83055325]
[1758406470221,0.1,240.19,240.18,78.37658571]
[1758406482311,0.1,240.23,240.18,88.78544573]
[1758406482527,0.1,240.23,240.22,15.53829145]
[1758406482727,0.1,240.23,240.22,47.27829145]
[1758406482930,0.1,240.23,240.22,48.94666124]
[1758406484322,0.1,240.23,240.22,53.10951196]
[1758406485028,0.1,240.23,240.22,53.82951196]
[1758406487825,0.82,240.23,240.22,21.36951196]
[1758406488006,0.82,240.23,240.22,53.08951196]
[1758406489325,0.82,240.23,240.22,46.9839638]
[1758406489505,0.82,240.23,240.22,51.14681452]
[1758406492422,0.82,240.23,240.22,19.42681452]
[1758406492632,0.82,240.23,240.22,51.14681452]
[1758406493322,0.1,240.23,240.22,51.14681452]
[1758406494507,0.82,240.23,240.22,51.14681452]
[1758406496127,0.1,240.23,240.22,51.14681452]
[1758406496631,0.1,240.23,240.22,19.42681452]
[1758406496837,0.1,240.23,240.22,51.14681452]
[1758406498432,0.1,240.23,240.22,19.42681452]
[1758406498636,0.1,240.23,240.22,51.14681452]
[1758406499030,0.1,240.23,240.22,51.86681452]
[1758406499231,0.1,240.23,240.22,51.14681452]
[1758406506837,0.1,240.23,240.22,19.42681452]
[1758406507039,0.1,240.23,240.22,51.14681452]
[1758406508941,0.1,240.23,240.22,15.2639638]
[1758406509145,0.82,240.23,240.22,15.2639638]
[1758406509441,0.82,240.23,240.22,46.9839638]
[1758406509834,0.82,240.23,240.22,15.2639638]
[1758406510233,0.82,240.23,240.22,46.9839638]
[1758406510429,0.82,240.23,240.22,1.66836979]
[1758406510626,0.82,240.23,240.22,31.72]
[1758406518128,0.1,240.23,240.22,31.72]
[1758406519835,0.82,240.23,240.22,31.72]
[1758406524164,0.1,240.23,240.22,50.16844473]
[1758406524479,0.1,240.23,240.22,51.4118172]
[1758406525658,0.1,240.23,240.22,51.82810227]
[1758406525863,0.1,240.23,240.22,54.63336808]
[1758406532068,0.1,240.23,240.22,22.91336808]
[1758406532274,0.1,240.23,240.22,54.63336808]
[1758406533366,0.1,240.24,240.23,13.59559401]
[1758406533560,2.80526581,240.25,240.23,14.30559401]
[1758406533765,2.80526581,240.25,240.24,78.88521689]
[1758406534168,2.80526581,240.25,240.24,81.6904827]